[Event "Titled Tuesday Blitz July 4 Early 2023"]
[White "Ahmad, Khagan"]
[Black "Rustemov, Alexander"]
[WhiteFideId "13431552"]
[BlackFideId "4119002"]
[WhiteElo "2665"]
[BlackElo "2792"]
[Result "0-1"]
[Round "11"]
[TimeControl "180+2"]
[Date "2023.07.04"]
[WhiteClock "0:00:00"]
[BlackClock "0:00:17"]
[Board "31"]

1. e4 {[%clk 0:03:00]}  e6 {[%clk 0:02:57]} 2. d4 {[%clk 0:02:59]}  d5 {[%clk 0:02:58]} 3. Nd2 {[%clk 0:03:00]}  dxe4 {[%clk 0:02:56]} 4. Nxe4 {[%clk 0:03:01]}  Bd7 {[%clk 0:02:56]} 5. Nf3 {[%clk 0:02:59]}  Bc6 {[%clk 0:02:56]} 6. Bd3 {[%clk 0:02:59]}  Nd7 {[%clk 0:02:56]} 7. O-O {[%clk 0:02:59]}  Ngf6 {[%clk 0:02:57]} 8. Ned2 {[%clk 0:02:59]}  Be7 {[%clk 0:02:56]} 9. b3 {[%clk 0:02:59]}  O-O {[%clk 0:02:54]} 10. Bb2 {[%clk 0:02:59]}  b6 {[%clk 0:02:53]} 11. c4 {[%clk 0:02:59]}  Bb7 {[%clk 0:02:52]} 12. Qe2 {[%clk 0:03:00]}  c5 {[%clk 0:02:51]} 13. Rad1 {[%clk 0:02:56]}  Re8 {[%clk 0:02:50]} 14. Bb1 {[%clk 0:02:52]}  Qc7 {[%clk 0:02:49]} 15. Rfe1 {[%clk 0:02:51]}  Rad8 {[%clk 0:02:48]} 16. dxc5 {[%clk 0:02:48]}  bxc5 {[%clk 0:02:45]} 17. Ne5 {[%clk 0:02:46]}  Nxe5 {[%clk 0:02:38]} 18. Bxe5 {[%clk 0:02:47]}  Qc6 {[%clk 0:02:33]} 19. Nf3 {[%clk 0:02:40]}  h6 {[%clk 0:02:27]} 20. h3 {[%clk 0:02:38]}  a5 {[%clk 0:02:26]} 21. Qc2 {[%clk 0:02:28]}  Kf8 {[%clk 0:02:06]} 22. Bxf6 {[%clk 0:01:54]}  Bxf6 {[%clk 0:02:06]} 23. Qh7 {[%clk 0:01:53]}  Rxd1 {[%clk 0:01:58]} 24. Rxd1 {[%clk 0:01:52]}  Ke7 {[%clk 0:01:57]} 25. Re1 {[%clk 0:01:51]}  Rd8 {[%clk 0:01:50]} 26. Be4 {[%clk 0:01:50]}  Qc7 {[%clk 0:01:44]} 27. Bxb7 {[%clk 0:01:50]}  Qxb7 {[%clk 0:01:45]} 28. Qc2 {[%clk 0:01:38]}  Qd7 {[%clk 0:01:41]} 29. Qe4 {[%clk 0:01:30]}  a4 {[%clk 0:01:36]} 30. Ne5 {[%clk 0:01:15]}  Bxe5 {[%clk 0:01:36]} 31. Qxe5 {[%clk 0:01:16]}  Qd4 {[%clk 0:01:36]} 32. bxa4 {[%clk 0:01:11]}  Qxe5 {[%clk 0:01:23]} 33. Rxe5 {[%clk 0:01:12]}  Kd6 {[%clk 0:01:24]} 34. Re3 {[%clk 0:01:11]}  Kc6 {[%clk 0:01:20]} 35. a5 {[%clk 0:00:43]}  Rd1+ {[%clk 0:01:18]} 36. Kh2 {[%clk 0:00:43]}  Rd2 {[%clk 0:01:19]} 37. Rf3 {[%clk 0:00:41]}  f6 {[%clk 0:01:14]} 38. Re3 {[%clk 0:00:37]}  e5 {[%clk 0:01:13]} 39. Rg3 {[%clk 0:00:37]}  Rd7 {[%clk 0:00:53]} 40. Rb3 {[%clk 0:00:27]}  Rd2 {[%clk 0:00:37]} 41. Rg3 {[%clk 0:00:27]}  Rxa2 {[%clk 0:00:32]} 42. Rxg7 {[%clk 0:00:27]}  Kd6 {[%clk 0:00:32]} 43. f3 {[%clk 0:00:20]}  Rxa5 {[%clk 0:00:31]} 44. Rg6 {[%clk 0:00:21]}  Ke6 {[%clk 0:00:30]} 45. Rxh6 {[%clk 0:00:21]}  Ra4 {[%clk 0:00:30]} 46. Rh4 {[%clk 0:00:22]}  f5 {[%clk 0:00:30]} 47. g4 {[%clk 0:00:17]}  f4 {[%clk 0:00:24]} 48. Rh6+ {[%clk 0:00:17]}  Kf7 {[%clk 0:00:24]} 49. g5 {[%clk 0:00:16]}  Rxc4 {[%clk 0:00:24]} 50. h4 {[%clk 0:00:16]}  Rc1 {[%clk 0:00:24]} 51. Kh3 {[%clk 0:00:16]}  Rg1 {[%clk 0:00:23]} 52. Rc6 {[%clk 0:00:10]}  Rg3+ {[%clk 0:00:23]} 53. Kh2 {[%clk 0:00:11]}  Rxf3 {[%clk 0:00:24]} 54. Rxc5 {[%clk 0:00:11]}  Ke6 {[%clk 0:00:18]} 55. h5 {[%clk 0:00:10]}  Rg3 {[%clk 0:00:18]} 56. g6 {[%clk 0:00:10]}  Kf5 {[%clk 0:00:18]} 57. Rc1 {[%clk 0:00:00]}  Rg5 {[%clk 0:00:17]} 0-1


[Site "https://www.chess.com"]

[Event "Titled Tuesday Blitz July 4 Early 2023"]
[White "Gorovets, Andrey"]
[Black "Hilary46"]
[WhiteFideId "13504037"]
[WhiteElo "2765"]
[BlackElo "2649"]
[Result "1-0"]
[Round "11"]
[TimeControl "180+2"]
[Date "2023.07.04"]
[WhiteClock "0:00:29"]
[BlackClock "0:00:00"]
[Board "32"]

1. d4 {[%clk 0:02:58]}  d5 {[%clk 0:02:59]} 2. c4 {[%clk 0:02:58]}  c6 {[%clk 0:03:00]} 3. Nf3 {[%clk 0:02:59]}  Nf6 {[%clk 0:03:01]} 4. Nc3 {[%clk 0:02:58]}  e6 {[%clk 0:03:01]} 5. g3 {[%clk 0:02:59]}  Nbd7 {[%clk 0:03:01]} 6. Qd3 {[%clk 0:02:57]}  Bd6 {[%clk 0:02:48]} 7. Bg2 {[%clk 0:02:54]}  O-O {[%clk 0:02:49]} 8. O-O {[%clk 0:02:53]}  dxc4 {[%clk 0:02:49]} 9. Qxc4 {[%clk 0:02:53]}  e5 {[%clk 0:02:50]} 10. Rd1 {[%clk 0:02:50]}  Qe7 {[%clk 0:02:49]} 11. e4 {[%clk 0:02:39]}  exd4 {[%clk 0:02:38]} 12. Nxd4 {[%clk 0:02:40]}  Ne5 {[%clk 0:02:38]} 13. Qe2 {[%clk 0:02:39]}  Bc5 {[%clk 0:02:36]} 14. h3 {[%clk 0:02:37]}  Rd8 {[%clk 0:02:30]} 15. Be3 {[%clk 0:02:37]}  Be6 {[%clk 0:02:02]} 16. b3 {[%clk 0:02:21]}  Bd7 {[%clk 0:01:46]} 17. Rac1 {[%clk 0:02:11]}  Bb6 {[%clk 0:01:43]} 18. f4 {[%clk 0:02:00]}  Ng6 {[%clk 0:01:42]} 19. e5 {[%clk 0:01:59]}  Ne8 {[%clk 0:01:30]} 20. Na4 {[%clk 0:01:59]}  Bxd4 {[%clk 0:01:24]} 21. Bxd4 {[%clk 0:01:55]}  Be6 {[%clk 0:01:23]} 22. Qf2 {[%clk 0:01:47]}  Bd5 {[%clk 0:01:21]} 23. Bxa7 {[%clk 0:01:46]}  Bxg2 {[%clk 0:01:19]} 24. Kxg2 {[%clk 0:01:46]}  Rxd1 {[%clk 0:01:15]} 25. Rxd1 {[%clk 0:01:47]}  Nc7 {[%clk 0:01:15]} 26. Nb6 {[%clk 0:01:40]}  Rd8 {[%clk 0:01:07]} 27. Rxd8+ {[%clk 0:01:21]}  Qxd8 {[%clk 0:01:08]} 28. Nc4 {[%clk 0:01:21]}  Qd5+ {[%clk 0:01:05]} 29. Kh2 {[%clk 0:01:21]}  Nb5 {[%clk 0:01:04]} 30. Be3 {[%clk 0:01:14]}  h5 {[%clk 0:01:04]} 31. a4 {[%clk 0:01:07]}  Nc3 {[%clk 0:01:04]} 32. Qd2 {[%clk 0:01:08]}  Nd1 {[%clk 0:00:35]} 33. Bb6 {[%clk 0:00:51]}  h4 {[%clk 0:00:33]} 34. Qxd5 {[%clk 0:00:50]}  cxd5 {[%clk 0:00:34]} 35. Nd6 {[%clk 0:00:50]}  hxg3+ {[%clk 0:00:33]} 36. Kxg3 {[%clk 0:00:51]}  Nc3 {[%clk 0:00:30]} 37. Nxb7 {[%clk 0:00:44]}  d4 {[%clk 0:00:20]} 38. Nc5 {[%clk 0:00:44]}  Ne2+ {[%clk 0:00:18]} 39. Kf3 {[%clk 0:00:44]}  Nexf4 {[%clk 0:00:18]} 40. Ke4 {[%clk 0:00:43]}  Nxh3 {[%clk 0:00:16]} 41. a5 {[%clk 0:00:42]}  Ng5+ {[%clk 0:00:15]} 42. Kxd4 {[%clk 0:00:41]}  Ne7 {[%clk 0:00:15]} 43. a6 {[%clk 0:00:37]}  Nc6+ {[%clk 0:00:10]} 44. Ke3 {[%clk 0:00:33]}  Kf8 {[%clk 0:00:05]} 45. a7 {[%clk 0:00:28]}  Nxa7 {[%clk 0:00:05]} 46. Bxa7 {[%clk 0:00:29]}  Ke7 {[%clk 0:00:00]} 47. Bb8 {[%clk 0:00:29]} 1-0


[Site "https://www.chess.com"]

[Event "Titled Tuesday Blitz July 4 Early 2023"]
[White "Tan, Jun Ying"]
[Black "Gunina, Valentina"]
[WhiteFideId "5710413"]
[BlackFideId "4167570"]
[WhiteElo "2646"]
[BlackElo "2759"]
[Result "1-0"]
[Round "11"]
[TimeControl "180+2"]
[Date "2023.07.04"]
[WhiteClock "0:00:06"]
[BlackClock "0:00:03"]
[Board "33"]

1. d4 {[%clk 0:03:00]}  d5 {[%clk 0:02:59]} 2. c4 {[%clk 0:03:01]}  c6 {[%clk 0:02:59]} 3. Nf3 {[%clk 0:03:02]}  Nf6 {[%clk 0:02:59]} 4. Nc3 {[%clk 0:02:58]}  dxc4 {[%clk 0:02:58]} 5. e4 {[%clk 0:02:58]}  b5 {[%clk 0:02:57]} 6. Be2 {[%clk 0:02:59]}  e6 {[%clk 0:02:55]} 7. O-O {[%clk 0:02:59]}  Be7 {[%clk 0:02:56]} 8. a4 {[%clk 0:02:59]}  b4 {[%clk 0:02:53]} 9. e5 {[%clk 0:02:59]}  bxc3 {[%clk 0:02:45]} 10. exf6 {[%clk 0:02:59]}  Bxf6 {[%clk 0:02:42]} 11. bxc3 {[%clk 0:03:00]}  O-O {[%clk 0:02:38]} 12. Bxc4 {[%clk 0:02:59]}  Ba6 {[%clk 0:02:32]} 13. Bxa6 {[%clk 0:02:56]}  Nxa6 {[%clk 0:02:32]} 14. Qe2 {[%clk 0:02:56]}  Qa5 {[%clk 0:02:25]} 15. Bf4 {[%clk 0:02:46]}  Nc7 {[%clk 0:02:08]} 16. Bd6 {[%clk 0:02:40]}  Rfd8 {[%clk 0:02:06]} 17. Bb4 {[%clk 0:02:40]}  Qh5 {[%clk 0:02:06]} 18. Qc4 {[%clk 0:02:27]}  Nd5 {[%clk 0:02:01]} 19. Qxc6 {[%clk 0:02:20]}  a5 {[%clk 0:02:00]} 20. Bc5 {[%clk 0:02:08]}  Nxc3 {[%clk 0:01:55]} 21. Kh1 {[%clk 0:01:20]}  Rdc8 {[%clk 0:01:53]} 22. Qb7 {[%clk 0:01:11]}  Rab8 {[%clk 0:01:52]} 23. Qa6 {[%clk 0:01:10]}  Ne4 {[%clk 0:01:48]} 24. Rac1 {[%clk 0:00:50]}  Nxc5 {[%clk 0:01:44]} 25. dxc5 {[%clk 0:00:42]}  Rxc5 {[%clk 0:01:43]} 26. Qa7 {[%clk 0:00:11]}  Rbc8 {[%clk 0:01:43]} 27. Rxc5 {[%clk 0:00:07]}  Qxc5 {[%clk 0:01:42]} 28. Qd7 {[%clk 0:00:08]}  g6 {[%clk 0:01:34]} 29. h3 {[%clk 0:00:06]}  h5 {[%clk 0:01:33]} 30. Kg1 {[%clk 0:00:06]}  Kg7 {[%clk 0:01:31]} 31. Rb1 {[%clk 0:00:05]}  Qc6 {[%clk 0:01:22]} 32. Rb7 {[%clk 0:00:03]}  Qxd7 {[%clk 0:01:21]} 33. Rxd7 {[%clk 0:00:04]}  Rc4 {[%clk 0:01:18]} 34. Ra7 {[%clk 0:00:03]}  Rxa4 {[%clk 0:01:18]} 35. g3 {[%clk 0:00:03]}  Ra2 {[%clk 0:01:09]} 36. Kg2 {[%clk 0:00:02]}  a4 {[%clk 0:01:09]} 37. g4 {[%clk 0:00:02]}  hxg4 {[%clk 0:01:09]} 38. hxg4 {[%clk 0:00:03]}  g5 {[%clk 0:01:09]} 39. Ra5 {[%clk 0:00:03]}  Kg6 {[%clk 0:01:08]} 40. Ra8 {[%clk 0:00:03]}  a3 {[%clk 0:01:08]} 41. Rg8+ {[%clk 0:00:03]}  Kh7 {[%clk 0:01:08]} 42. Rf8 {[%clk 0:00:03]}  Kg7 {[%clk 0:01:08]} 43. Ra8 {[%clk 0:00:03]}  Ra1 {[%clk 0:01:07]} 44. Ra5 {[%clk 0:00:03]}  Kg6 {[%clk 0:01:07]} 45. Ra8 {[%clk 0:00:01]}  Be7 {[%clk 0:00:57]} 46. Rg8+ {[%clk 0:00:01]}  Kh7 {[%clk 0:00:56]} 47. Re8 {[%clk 0:00:02]}  Bb4 {[%clk 0:00:49]} 48. Ra8 {[%clk 0:00:03]}  Kg6 {[%clk 0:00:44]} 49. Ra4 {[%clk 0:00:03]}  Rb1 {[%clk 0:00:41]} 50. Ne5+ {[%clk 0:00:03]}  Kf6 {[%clk 0:00:41]} 51. Nd7+ {[%clk 0:00:03]}  Kg7 {[%clk 0:00:40]} 52. Ne5 {[%clk 0:00:04]}  Bc3 {[%clk 0:00:34]} 53. Nd3 {[%clk 0:00:03]}  Rd1 {[%clk 0:00:27]} 54. Nc5 {[%clk 0:00:02]}  Bb2 {[%clk 0:00:27]} 55. Ra7 {[%clk 0:00:02]}  Rd4 {[%clk 0:00:23]} 56. Nxe6+ {[%clk 0:00:02]}  Kf6 {[%clk 0:00:21]} 57. Nxd4 {[%clk 0:00:03]}  Bxd4 {[%clk 0:00:20]} 58. Rxa3 {[%clk 0:00:04]}  Ke5 {[%clk 0:00:21]} 59. Ra5+ {[%clk 0:00:04]}  Kf4 {[%clk 0:00:20]} 60. Rf5+ {[%clk 0:00:03]}  Kxg4 {[%clk 0:00:20]} 61. Rxf7 {[%clk 0:00:04]}  Be5 {[%clk 0:00:20]} 62. Rb7 {[%clk 0:00:05]}  Bf4 {[%clk 0:00:20]} 63. Rb4 {[%clk 0:00:05]}  Kh4 {[%clk 0:00:20]} 64. Rb5 {[%clk 0:00:06]}  Kg4 {[%clk 0:00:21]} 65. Rb7 {[%clk 0:00:06]}  Kh4 {[%clk 0:00:20]} 66. Rh7+ {[%clk 0:00:07]}  Kg4 {[%clk 0:00:20]} 67. f3+ {[%clk 0:00:07]}  Kf5 {[%clk 0:00:21]} 68. Kh3 {[%clk 0:00:07]}  Be5 {[%clk 0:00:21]} 69. Rb7 {[%clk 0:00:08]}  Kf4 {[%clk 0:00:21]} 70. Rf7+ {[%clk 0:00:07]}  Ke3 {[%clk 0:00:21]} 71. Kg4 {[%clk 0:00:08]}  Bf4 {[%clk 0:00:21]} 72. Re7+ {[%clk 0:00:07]}  Kf2 {[%clk 0:00:22]} 73. Re4 {[%clk 0:00:07]}  Bd2 {[%clk 0:00:21]} 74. Rd4 {[%clk 0:00:07]}  Be3 {[%clk 0:00:20]} 75. Rd3 {[%clk 0:00:07]}  Bf4 {[%clk 0:00:21]} 76. Rd5 {[%clk 0:00:07]}  Be3 {[%clk 0:00:21]} 77. Rb5 {[%clk 0:00:07]}  Bf4 {[%clk 0:00:21]} 78. Rb3 {[%clk 0:00:07]}  Ke2 {[%clk 0:00:20]} 79. Kf5 {[%clk 0:00:05]}  Kf2 {[%clk 0:00:19]} 80. Ke4 {[%clk 0:00:05]}  Kg3 {[%clk 0:00:19]} 81. Rb1 {[%clk 0:00:05]}  Kg2 {[%clk 0:00:18]} 82. Rb2+ {[%clk 0:00:05]}  Kg3 {[%clk 0:00:18]} 83. Rb5 {[%clk 0:00:05]}  Kg2 {[%clk 0:00:18]} 84. Rf5 {[%clk 0:00:06]}  Kg3 {[%clk 0:00:18]} 85. Rf8 {[%clk 0:00:06]}  Bd2 {[%clk 0:00:17]} 86. Rd8 {[%clk 0:00:06]}  Bf4 {[%clk 0:00:17]} 87. Rd1 {[%clk 0:00:06]}  Kg2 {[%clk 0:00:17]} 88. Rd3 {[%clk 0:00:06]}  Kg3 {[%clk 0:00:17]} 89. Kf5 {[%clk 0:00:07]}  Kh3 {[%clk 0:00:15]} 90. Rd7 {[%clk 0:00:06]}  Kg3 {[%clk 0:00:15]} 91. Rd3 {[%clk 0:00:06]}  Kh3 {[%clk 0:00:15]} 92. Kg6 {[%clk 0:00:07]}  Kg3 {[%clk 0:00:15]} 93. Kh5 {[%clk 0:00:07]}  Bc1 {[%clk 0:00:14]} 94. Rc3 {[%clk 0:00:07]}  Bf4 {[%clk 0:00:14]} 95. Rb3 {[%clk 0:00:07]}  Bd2 {[%clk 0:00:13]} 96. Kg6 {[%clk 0:00:06]}  Bf4 {[%clk 0:00:13]} 97. Ra3 {[%clk 0:00:06]}  Kh3 {[%clk 0:00:12]} 98. Kf5 {[%clk 0:00:06]}  Kg3 {[%clk 0:00:13]} 99. Ke4 {[%clk 0:00:06]}  Kg2 {[%clk 0:00:12]} 100. Ra2+ {[%clk 0:00:06]}  Kg3 {[%clk 0:00:12]} 101. Ra6 {[%clk 0:00:06]}  Bd2 {[%clk 0:00:11]} 102. Rd6 {[%clk 0:00:06]}  Bf4 {[%clk 0:00:11]} 103. Rf6 {[%clk 0:00:07]}  Bd2 {[%clk 0:00:11]} 104. Rf5 {[%clk 0:00:07]}  Bf4 {[%clk 0:00:10]} 105. Rf7 {[%clk 0:00:06]}  Bd2 {[%clk 0:00:09]} 106. Rd7 {[%clk 0:00:05]}  Bf4 {[%clk 0:00:09]} 107. Rd8 {[%clk 0:00:04]}  Bc1 {[%clk 0:00:08]} 108. Rd3 {[%clk 0:00:03]}  Bf4 {[%clk 0:00:08]} 109. Rb3 {[%clk 0:00:03]}  Kg2 {[%clk 0:00:08]} 110. Kf5 {[%clk 0:00:04]}  Kg3 {[%clk 0:00:08]} 111. Rc3 {[%clk 0:00:04]}  Kh3 {[%clk 0:00:08]} 112. Rd3 {[%clk 0:00:04]}  Kg3 {[%clk 0:00:09]} 113. Rb3 {[%clk 0:00:04]}  Kh3 {[%clk 0:00:09]} 114. Rb4 {[%clk 0:00:05]}  Kg3 {[%clk 0:00:09]} 115. Rxf4 {[%clk 0:00:05]}  gxf4 {[%clk 0:00:03]} 116. Ke4 {[%clk 0:00:06]} 1-0


[Site "https://www.chess.com"]

[Event "Titled Tuesday Blitz July 4 Early 2023"]
[White "Wagner, Dennis"]
[Black "Mindhunter08"]
[WhiteFideId "24650684"]
[WhiteElo "2729"]
[BlackElo "2366"]
[Result "1-0"]
[Round "11"]
[TimeControl "180+2"]
[Date "2023.07.04"]
[WhiteClock "0:00:12"]
[BlackClock "0:00:01"]
[Board "37"]

1. e4 {[%clk 0:03:00]}  e5 {[%clk 0:03:00]} 2. Nf3 {[%clk 0:03:00]}  Nc6 {[%clk 0:02:57]} 3. Bb5 {[%clk 0:03:00]}  a6 {[%clk 0:02:57]} 4. Ba4 {[%clk 0:03:00]}  Nf6 {[%clk 0:02:58]} 5. O-O {[%clk 0:03:01]}  Be7 {[%clk 0:02:58]} 6. Re1 {[%clk 0:03:00]}  b5 {[%clk 0:02:59]} 7. Bb3 {[%clk 0:03:00]}  d6 {[%clk 0:03:00]} 8. c3 {[%clk 0:03:00]}  O-O {[%clk 0:03:00]} 9. h3 {[%clk 0:03:01]}  Nb8 {[%clk 0:03:00]} 10. d4 {[%clk 0:02:58]}  Nbd7 {[%clk 0:03:00]} 11. Nbd2 {[%clk 0:02:58]}  Bb7 {[%clk 0:03:00]} 12. Bc2 {[%clk 0:02:57]}  Re8 {[%clk 0:02:59]} 13. Nf1 {[%clk 0:02:56]}  Bf8 {[%clk 0:02:59]} 14. Ng3 {[%clk 0:02:57]}  g6 {[%clk 0:03:00]} 15. a4 {[%clk 0:02:56]}  c5 {[%clk 0:03:00]} 16. d5 {[%clk 0:02:55]}  c4 {[%clk 0:02:59]} 17. Bg5 {[%clk 0:02:55]}  Qc7 {[%clk 0:02:56]} 18. Qd2 {[%clk 0:02:55]}  Be7 {[%clk 0:02:55]} 19. Bh6 {[%clk 0:02:53]}  Nc5 {[%clk 0:02:54]} 20. Nf5 {[%clk 0:02:34]}  bxa4 {[%clk 0:02:27]} 21. Nxe7+ {[%clk 0:02:26]}  Qxe7 {[%clk 0:02:27]} 22. Bg5 {[%clk 0:02:22]}  Nb3 {[%clk 0:02:06]} 23. Bxb3 {[%clk 0:02:19]}  axb3 {[%clk 0:02:07]} 24. Nh2 {[%clk 0:02:16]}  h5 {[%clk 0:01:59]} 25. Qe2 {[%clk 0:01:45]}  Kg7 {[%clk 0:01:51]} 26. Qf3 {[%clk 0:01:42]}  Rec8 {[%clk 0:01:39]} 27. Ra5 {[%clk 0:01:38]}  Rc7 {[%clk 0:01:32]} 28. Nf1 {[%clk 0:01:37]}  Rh8 {[%clk 0:01:21]} 29. h4 {[%clk 0:01:35]}  Bc8 {[%clk 0:01:14]} 30. Ne3 {[%clk 0:01:35]}  Bg4 {[%clk 0:01:01]} 31. Qg3 {[%clk 0:01:08]}  Qe8 {[%clk 0:00:20]} 32. Bxf6+ {[%clk 0:01:06]}  Kxf6 {[%clk 0:00:20]} 33. Rxa6 {[%clk 0:01:06]}  Qd8 {[%clk 0:00:15]} 34. Rea1 {[%clk 0:01:01]}  Kg7 {[%clk 0:00:13]} 35. R1a4 {[%clk 0:00:54]}  Qd7 {[%clk 0:00:09]} 36. Nxc4 {[%clk 0:00:46]}  Be2 {[%clk 0:00:06]} 37. Nxd6 {[%clk 0:00:28]}  Bxa6 {[%clk 0:00:06]} 38. Rxa6 {[%clk 0:00:28]}  Kh7 {[%clk 0:00:04]} 39. Qxe5 {[%clk 0:00:27]}  Qe7 {[%clk 0:00:03]} 40. Qxe7 {[%clk 0:00:17]}  Rxe7 {[%clk 0:00:04]} 41. c4 {[%clk 0:00:18]}  Rd8 {[%clk 0:00:04]} 42. c5 {[%clk 0:00:18]}  f5 {[%clk 0:00:04]} 43. f3 {[%clk 0:00:16]}  fxe4 {[%clk 0:00:04]} 44. fxe4 {[%clk 0:00:16]}  Kg7 {[%clk 0:00:03]} 45. Rb6 {[%clk 0:00:16]}  Kh7 {[%clk 0:00:04]} 46. Rxb3 {[%clk 0:00:16]}  Kg7 {[%clk 0:00:03]} 47. Rf3 {[%clk 0:00:17]}  Rc7 {[%clk 0:00:03]} 48. b4 {[%clk 0:00:16]}  Ra8 {[%clk 0:00:03]} 49. Rc3 {[%clk 0:00:15]}  Ra1+ {[%clk 0:00:03]} 50. Kh2 {[%clk 0:00:16]}  Rb1 {[%clk 0:00:04]} 51. b5 {[%clk 0:00:16]}  Kf6 {[%clk 0:00:04]} 52. b6 {[%clk 0:00:17]}  Rxb6 {[%clk 0:00:03]} 53. Rf3+ {[%clk 0:00:14]}  Ke5 {[%clk 0:00:03]} 54. Nc4+ {[%clk 0:00:15]}  Kd4 {[%clk 0:00:03]} 55. cxb6 {[%clk 0:00:13]}  Rxc4 {[%clk 0:00:03]} 56. Rb3 {[%clk 0:00:12]}  Kc5 {[%clk 0:00:01]} 57. b7 {[%clk 0:00:12]} 1-0


[Site "https://www.chess.com"]

[Event "Titled Tuesday Blitz July 4 Early 2023"]
[White "Howell, David W L"]
[Black "Shubenkova, Veronika"]
[WhiteFideId "410608"]
[BlackFideId "44124040"]
[WhiteElo "2996"]
[BlackElo "2538"]
[Result "1-0"]
[Round "11"]
[TimeControl "180+2"]
[Date "2023.07.04"]
[WhiteClock "0:00:08"]
[BlackClock "0:00:00"]
[Board "38"]

1. d4 {[%clk 0:02:56]}  d5 {[%clk 0:02:59]} 2. c4 {[%clk 0:02:57]}  e6 {[%clk 0:02:59]} 3. Nc3 {[%clk 0:02:56]}  f5 {[%clk 0:03:00]} 4. e3 {[%clk 0:02:52]}  Nf6 {[%clk 0:03:00]} 5. Qc2 {[%clk 0:02:52]}  c6 {[%clk 0:03:00]} 6. Bd3 {[%clk 0:02:52]}  Ne4 {[%clk 0:03:00]} 7. Nge2 {[%clk 0:02:40]}  Bd6 {[%clk 0:02:58]} 8. O-O {[%clk 0:02:32]}  O-O {[%clk 0:02:58]} 9. f3 {[%clk 0:02:32]}  Nxc3 {[%clk 0:02:48]} 10. bxc3 {[%clk 0:02:30]}  Qf6 {[%clk 0:02:44]} 11. Bd2 {[%clk 0:02:17]}  e5 {[%clk 0:02:40]} 12. cxd5 {[%clk 0:02:11]}  cxd5 {[%clk 0:02:40]} 13. e4 {[%clk 0:01:58]}  dxe4 {[%clk 0:02:39]} 14. fxe4 {[%clk 0:01:57]}  f4 {[%clk 0:02:39]} 15. Nxf4 {[%clk 0:01:30]}  exf4 {[%clk 0:02:36]} 16. e5 {[%clk 0:01:31]}  Bxe5 {[%clk 0:02:36]} 17. dxe5 {[%clk 0:01:32]}  Qxe5 {[%clk 0:02:37]} 18. Rae1 {[%clk 0:01:32]}  Qc5+ {[%clk 0:02:31]} 19. Kh1 {[%clk 0:01:32]}  f3 {[%clk 0:02:21]} 20. Bxh7+ {[%clk 0:01:14]}  Kh8 {[%clk 0:02:21]} 21. Rxf3 {[%clk 0:01:15]}  Rxf3 {[%clk 0:02:19]} 22. gxf3 {[%clk 0:01:16]}  Qh5 {[%clk 0:02:08]} 23. Re3 {[%clk 0:00:46]}  Bd7 {[%clk 0:02:04]} 24. Bg6 {[%clk 0:00:44]}  Qh3 {[%clk 0:02:02]} 25. Qd1 {[%clk 0:00:37]}  Na6 {[%clk 0:01:55]} 26. Be4 {[%clk 0:00:29]}  Nc5 {[%clk 0:01:52]} 27. f4 {[%clk 0:00:28]}  Qh4 {[%clk 0:01:50]} 28. Bg2 {[%clk 0:00:24]}  Rf8 {[%clk 0:01:31]} 29. Be1 {[%clk 0:00:19]}  Qxf4 {[%clk 0:01:27]} 30. Qh5+ {[%clk 0:00:16]}  Kg8 {[%clk 0:01:10]} 31. Qxc5 {[%clk 0:00:16]}  Bc6 {[%clk 0:01:08]} 32. Rg3 {[%clk 0:00:11]}  Re8 {[%clk 0:00:54]} 33. Qg1 {[%clk 0:00:08]}  Bxg2+ {[%clk 0:00:31]} 34. Rxg2 {[%clk 0:00:09]}  Qf3 {[%clk 0:00:30]} 35. Qf2 {[%clk 0:00:03]}  Qd1 {[%clk 0:00:26]} 36. Rg1 {[%clk 0:00:03]}  Re2 {[%clk 0:00:20]} 37. Qd4 {[%clk 0:00:02]}  Qxd4 {[%clk 0:00:12]} 38. cxd4 {[%clk 0:00:03]}  Rxa2 {[%clk 0:00:13]} 39. Bg3 {[%clk 0:00:04]}  Kf7 {[%clk 0:00:13]} 40. Be5 {[%clk 0:00:05]}  g6 {[%clk 0:00:13]} 41. Rc1 {[%clk 0:00:05]}  Rb2 {[%clk 0:00:10]} 42. Kg1 {[%clk 0:00:04]}  a5 {[%clk 0:00:10]} 43. Rc8 {[%clk 0:00:04]}  Ke6 {[%clk 0:00:10]} 44. Re8+ {[%clk 0:00:03]}  Kf5 {[%clk 0:00:10]} 45. Kf1 {[%clk 0:00:03]}  a4 {[%clk 0:00:09]} 46. Ra8 {[%clk 0:00:04]}  Rb4 {[%clk 0:00:08]} 47. Ke1 {[%clk 0:00:05]}  b5 {[%clk 0:00:08]} 48. Kd2 {[%clk 0:00:05]}  Rb2+ {[%clk 0:00:08]} 49. Kc3 {[%clk 0:00:06]}  Rb3+ {[%clk 0:00:09]} 50. Kc2 {[%clk 0:00:06]}  Ke4 {[%clk 0:00:09]} 51. Bg7 {[%clk 0:00:06]}  Rh3 {[%clk 0:00:09]} 52. Re8+ {[%clk 0:00:05]}  Kd5 {[%clk 0:00:09]} 53. Rd8+ {[%clk 0:00:06]}  Kc4 {[%clk 0:00:09]} 54. Rc8+ {[%clk 0:00:07]}  Kd5 {[%clk 0:00:09]} 55. Rc5+ {[%clk 0:00:07]}  Ke4 {[%clk 0:00:09]} 56. Rxb5 {[%clk 0:00:08]}  Rxh2+ {[%clk 0:00:09]} 57. Kc3 {[%clk 0:00:09]}  a3 {[%clk 0:00:09]} 58. Re5+ {[%clk 0:00:08]}  Kf4 {[%clk 0:00:09]} 59. Ra5 {[%clk 0:00:09]}  Rh3+ {[%clk 0:00:08]} 60. Kc4 {[%clk 0:00:09]}  Kg4 {[%clk 0:00:08]} 61. d5 {[%clk 0:00:09]}  Rf3 {[%clk 0:00:08]} 62. d6 {[%clk 0:00:08]}  g5 {[%clk 0:00:00]} 63. d7 {[%clk 0:00:08]} 1-0


[Site "https://www.chess.com"]

[Event "Titled Tuesday Blitz July 4 Early 2023"]
[White "Janaszak, Dawid"]
[Black "Kosakowski, Jakub"]
[WhiteFideId "1119206"]
[BlackFideId "1185080"]
[WhiteElo "2593"]
[BlackElo "2817"]
[Result "1-0"]
[Round "11"]
[TimeControl "180+2"]
[Date "2023.07.04"]
[WhiteClock "0:00:14"]
[BlackClock "0:00:54"]
[Board "40"]

1. e4 {[%clk 0:03:00]}  c6 {[%clk 0:02:53]} 2. d4 {[%clk 0:03:00]}  d5 {[%clk 0:02:53]} 3. exd5 {[%clk 0:03:01]}  cxd5 {[%clk 0:02:53]} 4. Bd3 {[%clk 0:03:01]}  Nc6 {[%clk 0:02:54]} 5. c3 {[%clk 0:03:01]}  Qc7 {[%clk 0:02:54]} 6. Ne2 {[%clk 0:02:59]}  Bg4 {[%clk 0:02:54]} 7. O-O {[%clk 0:02:59]}  e6 {[%clk 0:02:54]} 8. Qe1 {[%clk 0:03:00]}  Nf6 {[%clk 0:02:53]} 9. Bg5 {[%clk 0:02:58]}  Bh5 {[%clk 0:02:47]} 10. Nf4 {[%clk 0:02:55]}  Bd6 {[%clk 0:02:42]} 11. g3 {[%clk 0:02:40]}  Bg6 {[%clk 0:02:37]} 12. Bxg6 {[%clk 0:02:19]}  hxg6 {[%clk 0:02:38]} 13. Na3 {[%clk 0:02:00]}  Ne4 {[%clk 0:02:32]} 14. Nb5 {[%clk 0:01:54]}  Qd7 {[%clk 0:02:30]} 15. Nxd6+ {[%clk 0:01:21]}  Qxd6 {[%clk 0:02:28]} 16. h4 {[%clk 0:01:18]}  Kd7 {[%clk 0:02:14]} 17. Nd3 {[%clk 0:01:08]}  Nxg5 {[%clk 0:02:12]} 18. hxg5 {[%clk 0:01:09]}  Rh5 {[%clk 0:02:12]} 19. Kg2 {[%clk 0:01:03]}  Rah8 {[%clk 0:02:11]} 20. Qe3 {[%clk 0:00:58]}  Rh2+ {[%clk 0:02:04]} 21. Kf3 {[%clk 0:00:58]}  Kc8 {[%clk 0:02:03]} 22. Ke2 {[%clk 0:00:58]}  Ne7 {[%clk 0:01:55]} 23. Qe5 {[%clk 0:00:56]}  Qa6 {[%clk 0:01:55]} 24. Qxg7 {[%clk 0:00:50]}  Nf5 {[%clk 0:01:55]} 25. Qxf7 {[%clk 0:00:42]}  Nxg3+ {[%clk 0:01:54]} 26. Ke3 {[%clk 0:00:38]}  Nf5+ {[%clk 0:01:43]} 27. Kd2 {[%clk 0:00:30]}  Kb8 {[%clk 0:01:40]} 28. Qf6 {[%clk 0:00:29]}  Ka8 {[%clk 0:01:31]} 29. Rh1 {[%clk 0:00:28]}  Rxh1 {[%clk 0:01:10]} 30. Rxh1 {[%clk 0:00:28]}  Rc8 {[%clk 0:01:10]} 31. Rh8 {[%clk 0:00:25]}  Qc6 {[%clk 0:01:08]} 32. Ne5 {[%clk 0:00:20]}  Qc7 {[%clk 0:01:08]} 33. Rxc8+ {[%clk 0:00:15]}  Qxc8 {[%clk 0:01:08]} 34. Nxg6 {[%clk 0:00:15]}  Nd6 {[%clk 0:01:08]} 35. Ne7 {[%clk 0:00:14]}  Ne4+ {[%clk 0:01:06]} 36. Ke3 {[%clk 0:00:13]}  Qe8 {[%clk 0:01:01]} 37. Qxe6 {[%clk 0:00:13]}  Nxg5 {[%clk 0:01:01]} 38. Qc8+ {[%clk 0:00:13]}  Qxc8 {[%clk 0:01:01]} 39. Nxc8 {[%clk 0:00:14]}  Kb8 {[%clk 0:00:54]} 40. Ne7 {[%clk 0:00:14]} 1-0


[Site "https://www.chess.com"]